bitfinex-derivatives/quotes_ETHF0:USTF0_20241022
["timestamp","ask_amount","ask_price","bid_price","bid_amount"]
[1729609040657,1.827,2641.7,2641.6,0.37872]
[1729609045356,6.54649,2641.9,2641.8,0.3787]
[1729609045560,8.37349,2641.9,2641.8,0.3787]
[1729609045760,7.9948,2641.9,2641.8,0.3787]
[1729609046063,4.787,2642.4,2642.3,0.37862]
[1729609046556,1.827,2642.4,2642.3,0.37862]
[1729609047151,4.787,2642.4,2642.3,0.37862]
[1729609050565,2.96,2642.4,2642.3,0.37862]
[1729609050766,4.786,2642.4,2642.3,0.37862]
[1729609055277,1.826,2642.4,2642.3,0.37862]
[1729609056067,4.786,2642.4,2642.3,0.37862]
[1729609056275,2.96,2642.4,2642.3,0.37862]
[1729609056467,4.786,2642.4,2642.3,0.37862]
[1729609057064,2.96,2642.4,2642.3,0.37862]
[1729609057261,0.54734776,2642.8,2642.2,1.3179]
[1729609057465,0.54734776,2642.8,2642.6,0.37857]
[1729609057466,1.826,2642.7,2642.6,0.37857]
[1729609059072,6.1678,2642.9,2642.5,1.3656]
[1729609059268,3.2078,2642.9,2642.8,0.37855]
[1729609059463,5.0278,2642.9,2642.8,0.37855]
[1729609059663,5.0278,2642.9,2642.5,2.31207]
[1729609059664,11.7718,2642.9,2642.5,1.3656]
[1729609059867,3.33858,2642.7,2642.5,1.74419]
[1729609060169,0.37858,2642.6,2642.5,1.3656]
[1729609060363,0.37858,2642.6,2642.5,0.37859]
[1729609060767,2.96,2642.7,2642.5,0.37859]
[1729609060978,0.37858,2642.6,2642.5,0.37859]
[1729609061166,2.96,2642.7,2642.3,1.3257]
[1729609061477,2.96,2642.4,2642.3,1.3257]
[1729609061673,3.33861,2642.4,2642.3,1.70432]
[1729609061976,2.96,2642.4,2642.2,1.79283]
[1729609062172,0.37862,2642.3,2642.2,1.4142]
[1729609062373,0.37864,2642.2,2642.1,1.72305]
[1729609062571,0.37868,2641.9,2641.8,1.4142]
[1729609062770,0.37868,2641.9,2641.7,0.37871]
[1729609062771,0.3787,2641.8,2641.7,0.37871]
[1729609062970,5.34659985,2641.9,2641.7,0.3787]
[1729609063181,2.00790985,2641.9,2641.8,0.3787]
[1729609063478,2.38659985,2641.9,2641.7,0.3787]
[1729609063788,2.38659985,2641.9,2641.6,1.3444]
[1729609063789,2.00790985,2641.9,2641.6,1.3444]
[1729609064275,3.33871,2641.7,2641.6,1.3444]
[1729609064583,0.37873,2641.6,2641.4,0.37874]
[1729609065079,2.96,2641.7,2641.6,3.40685449]
[1729609065278,3.33871,2641.7,2641.6,3.40685449]
[1729609065580,7.12431,2641.7,2641.6,3.40685449]
[1729609065874,4.15449,2642.0,2641.6,3.40685449]
[1729609065875,0.37867,2642.0,2641.6,3.40685449]
[1729609066081,3.2078,2642.7,2642.0,0.94667]
[1729609066280,1.82,2642.9,2642.2,0.9466]
[1729609066476,2.19854,2642.9,2642.3,4.3079]
[1729609066670,2.19854,2642.9,2642.6,0.37857]
[1729609066871,1.82,2642.9,2642.3,1.3479]
[1729609067273,1.82,2642.9,2642.6,0.37857]
[1729609067274,2.19854,2642.9,2642.6,0.37857]
[1729609068182,1.82,2642.9,2642.8,0.37855]
[1729609068779,5.604,2642.9,2642.4,0.94653]
[1729609068982,1.82,2642.9,2642.8,0.37855]
[1729609069482,5.604,2642.9,2642.7,0.37856]
[1729609069683,5.604,2642.9,2642.4,0.94653]
[1729609069684,1.82,2642.9,2642.4,0.94653]
[1729609069879,0.75680322,2643.0,2642.8,0.37855]
[1729609070083,1.819,2642.9,2642.8,0.37855]
[1729609070384,2.01209409,2642.9,2642.8,0.37855]
[1729609070583,5.79609409,2642.9,2642.8,0.37855]
[1729609072188,5.79609409,2642.9,2642.1,7.06341]
[1729609072377,5.79609409,2642.9,2641.7,2.35475]
[1729609072378,2.96,2642.2,2641.7,2.35475]
[1729609072579,2.96,2641.8,2641.7,3.22361]
[1729609072782,1.819,2641.9,2641.8,0.3787]
[1729609072978,2.96,2642.5,2641.8,3.5865]
[1729609073181,0.19309409,2642.9,2642.1,3.2078]
[1729609073383,6.1678,2643.0,2642.6,0.94646]
[1729609073582,6.1678,2643.0,2642.9,0.37854]
[1729609073885,6.35267713,2643.0,2642.7,4.1392]
[1729609074081,2.96,2642.8,2642.7,4.51777]
[1729609074585,6.35267713,2643.0,2642.9,0.37854]
[1729609074780,14.91567713,2643.0,2642.7,1.4369]
[1729609074982,2.96,2642.8,2642.7,1.4369]
[1729609075285,0.37858,2642.7,2642.3,0.37862]
[1729609075487,2.96,2642.5,2642.2,6.28603]
[1729609075788,2.96,2642.5,2642.2,5.9074]
[1729609075984,3.3386,2642.5,2642.2,3.2078]
[1729609076181,3.3386,2642.5,2642.1,1.4369]
[1729609076182,6.1678,2642.5,2642.1,1.4369]
[1729609076580,1.819,2642.4,2642.1,1.81555]
[1729609077592,1.819,2642.4,2642.1,1.81554]
[1729609078085,1.819,2642.3,2642.1,1.4369]
[1729609078276,1.819,2642.3,2642.2,0.37864]
[1729609078481,1.819,2642.3,2642.1,1.81554]
[1729609078885,1.819,2642.3,2642.2,0.37864]
[1729609079085,1.819,2642.3,2642.1,1.81554]
[1729609079392,1.819,2642.3,2642.1,1.4369]
[1729609079789,1.819,2642.3,2642.1,1.81555]
[1729609080088,1.819,2642.3,2641.7,3.68215]
[1729609080089,4.779,2642.3,2641.7,2.7354]
[1729609080293,2.96,2642.0,2641.8,1.4537]
[1729609080486,0.37868,2641.9,2641.8,1.4537]
[1729609080980,3.7856,2641.9,2641.6,6.61465449]
[1729609081185,3.33871,2641.7,2641.6,3.40685449]
[1729609081584,7.12431,2641.7,2641.6,3.40685449]
[1729609082992,7.66916826,2641.7,2641.6,3.40685449]
[1729609083189,7.66916826,2641.7,2641.6,2.57518951]
[1729609083391,0.37882,2641.0,2640.7,1.3183]
[1729609083595,5.34406993,2640.9,2640.7,1.3183]
[1729609084189,5.34406993,2640.9,2640.0,4.48]
[1729609084190,3.7864,2640.8,2640.0,1.52]
[1729609084394,3.33886,2640.7,2640.3,0.37891]
[1729609084594,3.33886,2640.7,2640.2,4.1402]
[1729609084595,0.37887,2640.6,2640.2,4.51912]
[1729609084788,2.96,2640.7,2640.2,4.1402]
[1729609085091,0.37887,2640.6,2640.2,4.51912]
[1729609085591,3.33886,2640.7,2640.3,0.37891]
[1729609085987,2.96,2640.7,2640.2,4.1402]
[1729609086397,3.33886,2640.7,2640.3,0.37891]
[1729609086893,0.37888,2640.6,2640.3,0.37891]
[1729609087093,3.33886,2640.7,2640.4,0.37889]
[1729609087288,3.33886,2640.7,2640.2,4.1402]
[1729609087289,2.96,2640.7,2640.2,4.1402]
[1729609087488,0.37887,2640.6,2640.3,0.37891]
[1729609087689,2.96,2640.7,2640.2,4.1402]
[1729609088095,0.37887,2640.6,2640.2,4.1402]
[1729609088297,0.37887,2640.6,2640.4,0.3789]
[1729609088989,0.37887,2640.6,2640.3,0.3789]
[1729609089196,0.37887,2640.6,2640.4,0.37889]
[1729609089493,0.37887,2640.6,2640.2,4.1402]
[1729609089494,2.96,2640.5,2640.0,1.52]
[1729609089689,2.96,2640.5,2640.2,0.37892]
[1729609089690,3.33889,2640.5,2640.2,0.37892]
[1729609089890,0.3789,2640.4,2640.2,0.37892]
[1729609090091,3.33889,2640.5,2640.2,0.37892]
[1729609090286,0.37891,2640.4,2640.1,4.51563]
[1729609090487,0.37891,2640.4,2640.2,0.37892]
[1729609090691,0.37892,2640.3,2640.1,4.51563]
[1729609090892,2.96,2640.5,2640.1,4.51563]
[1729609091192,0.37892,2640.2,2640.1,4.1367]
[1729609091390,0.37892,2640.2,2640.1,4.51564]
[1729609091596,0.37892,2640.2,2640.1,4.1367]
[1729609091991,0.37892,2640.2,2640.1,1.3479]
[1729609092799,3.58672,2640.3,2640.1,1.72684]
[1729609092995,4.773,2640.2,2640.1,1.72684]
[1729609093196,3.2078,2640.3,2640.1,1.3479]
[1729609093499,3.2078,2640.3,2640.2,1.77532]
[1729609093694,5.0208,2640.3,2640.2,3.10102]
[1729609094298,1.813,2640.3,2640.2,3.10102]
[1729609095091,2.96,2640.4,2640.2,3.10102]
[1729609095293,1.813,2640.3,2640.2,3.10102]
[1729609097698,1.813,2640.3,2640.2,1.3257]
[1729609100397,2.19191,2640.3,2640.2,1.3257]
[1729609103495,0.37892,2640.2,2640.1,1.3479]
[1729609103699,3.33892,2640.2,2640.1,1.3479]
[1729609105102,0.37894,2640.1,2640.0,1.52]
[1729609105301,0.37894,2640.1,2640.0,1.26416086]
[1729609105302,5.59654,2640.1,2640.0,1.26416086]
[1729609105806,5.79040961,2640.1,2640.0,1.26416086]
[1729609106103,4.16695,2640.0,2639.9,29.8871]
[1729609106303,10.52634348,2640.0,2639.9,29.8871]
[1729609109398,10.52634348,2640.0,2639.9,24.97421]
[1729609109706,10.52634348,2640.0,2639.9,15.97141]
[1729609110194,12.34034348,2640.0,2639.9,15.97141]
[1729609112904,8.55234348,2640.0,2639.9,15.97141]
[1729609114703,4.96559348,2640.0,2639.9,16.35038]
[1729609114901,4.96559348,2640.0,2639.9,17.74168]
[1729609116507,5.34454348,2640.0,2639.9,17.36271]
[1729609116912,3.2078,2640.7,2639.9,21.15071]
[1729609117102,1.814,2640.6,2640.4,0.37889]
[1729609117306,1.814,2640.6,2640.5,1.4043]
[1729609117507,4.96412892,2640.6,2640.5,1.4043]
[1729609117706,5.34299892,2640.6,2640.5,1.4043]
[1729609118107,4.96412892,2640.6,2640.5,1.4043]
[1729609119010,4.96412892,2640.6,2640.2,0.37892]
[1729609119209,2.96,2640.3,2640.2,0.37892]
[1729609119812,4.769,2640.3,2640.2,0.37892]
[1729609120014,4.769,2640.3,2640.2,1.69942]
[1729609120211,5.14791,2640.3,2640.2,1.3205]
[1729609120405,5.14791,2640.3,2640.2,1.69942]
[1729609121405,5.14791,2640.3,2640.2,1.3205]
[1729609121611,5.14791,2640.3,2640.2,1.69942]
[1729609122212,5.14791,2640.3,2640.2,1.3205]
[1729609123210,4.769,2640.3,2640.2,1.3205]
[1729609123517,5.14791,2640.3,2640.2,1.69942]
[1729609123713,5.14791,2640.3,2640.2,1.3205]
[1729609128219,8.5562,2640.3,2639.8,1.3626]
[1729609128414,2.96,2639.9,2639.8,1.74158]
[1729609128616,1.809,2640.3,2640.2,0.44863184]
[1729609128819,5.14791,2640.3,2640.2,0.44863184]
[1729609129017,8.93511,2640.3,2640.2,0.44863184]
[1729609129615,4.769,2640.3,2640.2,0.44863184]
[1729609129922,5.14791,2640.3,2640.2,0.82755184]
[1729609130117,5.14791,2640.3,2640.2,0.44863184]
[1729609130421,5.14791,2640.3,2640.2,0.82755184]
[1729609131419,4.769,2640.3,2640.2,0.82755184]
[1729609131618,1.60582892,2640.6,2640.2,0.44863184]
[1729609131920,1.809,2640.3,2640.2,0.82755184]
[1729609132221,3.2078,2640.7,2640.6,0.37887]
[1729609132516,1.809,2640.5,2640.4,0.3789]
[1729609132722,1.809,2640.7,2640.6,0.37887]
[1729609133021,2.96,2640.9,2640.8,0.37884]
[1729609133213,4.769,2640.9,2640.5,0.94721]
[1729609133414,5.33850407,2640.9,2640.7,0.37885]
[1729609133622,4.95968407,2640.9,2640.4,0.94725]
[1729609134123,4.95968407,2640.9,2640.8,0.37884]
[1729609134321,3.52950407,2640.9,2640.8,0.37884]
[1729609134509,0.37884,2640.8,2640.6,0.37886]
[1729609135110,4.95968407,2640.9,2640.2,4.60372184]
[1729609135318,0.37886,2640.7,2640.5,0.37887]
[1729609135515,0.37885,2640.8,2640.6,0.37887]
[1729609136109,4.95968407,2640.9,2640.7,0.37885]
[1729609136110,5.33851407,2640.9,2640.7,0.37885]
[1729609136510,4.95968407,2640.9,2640.4,0.94724]
[1729609136721,3.15068407,2640.9,2640.4,0.94724]
[1729609137023,1.809,2640.8,2640.3,3.2078]
[1729609137523,0.37885,2640.7,2640.5,0.37887]
[1729609138920,1.809,2640.8,2640.3,4.15508]
[1729609139119,1.809,2640.8,2640.6,0.37886]
[1729609139423,2.18784,2640.8,2640.6,0.37886]
[1729609140324,1.809,2640.8,2640.3,4.15508]
[1729609140524,1.809,2640.8,2640.6,0.37886]
[1729609140728,2.18784,2640.8,2640.6,0.37886]
[1729609141427,1.809,2640.8,2640.7,0.37885]
[1729609142519,3.15068407,2640.9,2640.7,3.7872]
[1729609142727,1.809,2640.8,2640.4,1.3704]
[1729609143032,0.37886,2640.7,2640.5,0.37887]
[1729609143332,1.808,2640.7,2640.6,0.37887]
[1729609143921,2.18686,2640.7,2640.5,0.37887]
[1729609144716,2.18686,2640.7,2640.4,1.74929]
[1729609144717,0.37887,2640.6,2640.4,1.74929]
[1729609144923,1.808,2640.7,2640.6,0.37887]
[1729609145320,2.18686,2640.7,2640.4,1.3704]
[1729609145530,2.18686,2640.7,2640.5,0.37888]
[1729609145827,2.18686,2640.7,2640.6,0.37887]
[1729609146027,1.808,2640.7,2640.6,0.37887]
[1729609146620,0.37887,2640.6,2640.4,2.8223]
[1729609146822,1.808,2640.7,2640.6,0.37887]
[1729609147023,0.37884,2640.8,2640.5,3.7872]
[1729609147221,5.0158,2641.0,2640.7,0.37885]
[1729609147422,0.37882,2640.9,2640.7,0.37885]
[1729609147632,0.37884,2640.8,2640.7,0.37885]
[1729609148532,0.37885,2640.8,2640.7,0.37885]
[1729609149521,2.18185,2640.8,2640.7,0.37885]
[1729609150031,0.37886,2640.7,2640.6,0.37886]
[1729609150232,2.18185,2640.8,2640.7,0.37885]
[1729609152736,1.803,2640.8,2640.7,0.37885]
[1729609154231,3.2078,2641.6,2640.7,6.7472]
[1729609154431,0.18725064,2641.7,2641.1,3.907]
[1729609154632,2.1817,2641.8,2641.7,0.37871]
[1729609154931,2.1817,2641.8,2641.4,0.37874]
[1729609154932,0.37874,2641.5,2641.4,0.37874]
[1729609155236,0.37875,2641.5,2641.3,3.2078]
[1729609155431,0.37875,2641.5,2641.3,3.58656]
[1729609155733,6.1678,2641.6,2641.2,1.73078]
[1729609155937,0.37877,2641.3,2641.2,1.352]
[1729609156133,3.16906,2641.4,2641.2,4.93857]
[1729609156336,0.37877,2641.3,2641.2,4.5598]
[1729609156532,0.37877,2641.3,2641.2,1.352]
[1729609156837,4.5933,2641.4,2641.0,0.37881]
[1729609157031,2.96,2641.3,2640.9,4.5532]
[1729609157239,0.3788,2641.1,2640.9,4.5532]
[1729609157434,0.3788,2641.1,2640.9,4.93201]
[1729609158233,2.96,2641.3,2640.9,4.5532]
[1729609158742,0.3788,2641.1,2640.9,4.93202]
[1729609159239,0.37879,2641.2,2641.0,0.37881]
[1729609159834,3.1432,2641.4,2641.0,3.7864]
[1729609160039,3.1432,2641.4,2641.2,0.37877]
[1729609160040,3.52196,2641.4,2641.2,0.37877]
[1729609160239,3.52196,2641.4,2641.3,0.37877]
[1729609160240,3.1432,2641.4,2641.3,0.37877]
[1729609160435,3.52195,2641.4,2641.2,0.37877]
[1729609160636,3.1432,2641.4,2641.2,0.37877]
[1729609161370,3.1432,2641.4,2640.9,4.5532]
[1729609161544,3.1432,2641.4,2641.2,0.37877]
[1729609162046,0.37878,2641.3,2641.0,0.3788]
[1729609162235,3.1432,2641.4,2641.0,0.3788]
[1729609162439,1.4161,2641.2,2641.0,0.3788]
[1729609162841,1.79489,2641.2,2640.9,4.5532]
[1729609163040,1.4161,2641.2,2641.0,0.3788]
[1729609163949,1.4161,2641.2,2640.6,3.2078]
[1729609163950,2.96,2641.1,2640.6,3.2078]
[1729609164145,1.4161,2641.2,2640.6,3.58666]
[1729609164146,2.96,2640.8,2640.6,3.58666]
[1729609164339,1.3705,2640.7,2640.6,3.2078]
[1729609164536,0.37887,2640.6,2640.5,1.4416]
[1729609164737,0.37887,2640.6,2640.3,6.37721]
[1729609164738,0.3789,2640.4,2640.3,3.2078]
[1729609164949,0.37891,2640.3,2640.2,0.44863184]
[1729609165147,1.9912443,2640.4,2640.2,0.44863184]
[1729609165448,0.37891,2640.3,2640.2,0.44863184]
[1729609165751,2.3701543,2640.4,2640.2,0.82755184]
[1729609166043,1.9912443,2640.4,2640.2,0.44863184]
[1729609166246,2.3701443,2640.4,2640.2,0.82755184]
[1729609166441,0.37891,2640.3,2640.2,0.44863184]
[1729609166644,3.33891,2640.3,2640.2,0.44863184]
[1729609166846,7.12611,2640.3,2640.2,0.44863184]
[1729609170050,7.12611,2640.3,2640.2,0.82755184]
[1729609170051,1.803,2640.3,2640.2,0.82755184]
[1729609170754,0.1882443,2640.4,2640.3,0.37891]
[1729609170951,1.9912443,2640.4,2640.3,1.79871]
[1729609172246,3.2078,2640.5,2640.3,5.207]
[1729609172448,1.803,2640.4,2640.3,1.79871]
[1729609173053,3.2078,2640.5,2640.4,0.3789]
[1729609173347,1.803,2640.6,2640.4,3.2078]
[1729609173553,1.803,2640.6,2640.5,0.37888]
[1729609175840,1.803,2640.6,2640.5,4.16608]
[1729609177052,9.476,2641.0,2640.9,0.37882]
[1729609177253,3.2078,2641.5,2640.8,3.2078]
[1729609177449,2.18177,2641.4,2641.3,0.37876]
[1729609177650,3.2078,2641.5,2641.0,0.94703]
[1729609177956,5.0108,2641.5,2641.4,0.37875]
[1729609178960,5.0108,2641.5,2641.4,1.81145]
[1729609178961,5.38954,2641.5,2641.4,1.81145]
[1729609179255,5.0108,2641.5,2641.4,1.81145]
[1729609179556,5.38954,2641.5,2641.4,1.4327]
[1729609179853,5.0108,2641.5,2641.4,1.81145]
[1729609180449,2.18174,2641.5,2641.4,1.4327]
[1729609180652,1.803,2641.5,2641.4,1.4327]
[1729609180853,1.803,2641.5,2641.4,1.81145]
[1729609181056,1.803,2641.5,2641.4,1.4327]
[1729609181254,0.37874,2641.5,2641.4,1.4327]
[1729609181448,0.37874,2641.5,2641.3,0.37876]
[1729609181449,1.796,2641.5,2641.0,1.4306]
[1729609181653,2.96,2641.4,2641.3,0.37876]
[1729609181854,3.33875,2641.4,2641.2,0.37877]
[1729609182658,3.33876,2641.4,2641.1,1.3334]
[1729609182851,3.33876,2641.4,2641.2,0.37878]
[1729609183161,3.33876,2641.4,2641.3,0.37877]
[1729609183456,3.33876,2641.4,2641.1,1.3334]
[1729609183760,0.37877,2641.3,2641.1,1.3334]
[1729609183950,2.96,2641.4,2641.1,1.3334]
[1729609184151,3.33876,2641.4,2641.3,0.37877]
[1729609184350,3.33876,2641.4,2641.2,0.37877]
[1729609184857,0.37877,2641.3,2641.1,1.3334]
[1729609185046,0.37877,2641.3,2641.2,0.37878]
[1729609187556,0.3788,2641.1,2640.9,1.4255]
[1729609187854,0.3788,2641.1,2640.8,1.4041]
[1729609187855,0.37884,2640.9,2640.8,1.4041]
[1729609188063,0.37884,2640.9,2640.6,1.4578]
[1729609188064,5.705,2641.0,2640.5,3.2078]
[1729609188367,0.37887,2640.6,2640.5,3.58668]
[1729609188565,1.795,2640.6,2640.5,3.58668]
[1729609189250,1.795,2640.6,2640.5,7.37388]
[1729609189652,1.795,2640.6,2640.5,3.58668]
[1729609190656,1.795,2640.6,2640.5,7.37388]
[1729609191153,4.756,2640.9,2640.8,2.37057129]
[1729609191363,1.796,2640.9,2640.8,2.37057129]
[1729609191660,4.756,2640.9,2640.8,2.37057129]
[1729609192951,1.796,2640.9,2640.8,2.37057129]
[1729609193962,4.756,2640.9,2640.8,2.37057129]
[1729609194167,5.13482,2640.9,2640.8,1.99173129]
[1729609194351,5.13482,2640.9,2640.8,2.37057129]
[1729609195356,2.17482,2640.9,2640.8,2.37057129]
[1729609195553,5.13482,2640.9,2640.8,2.37057129]
[1729609197361,1.796,2640.9,2640.8,2.37057129]
[1729609198764,2.17482,2640.9,2640.8,1.99173129]
[1729609198954,1.796,2640.9,2640.8,2.37057129]
[1729609199263,2.17482,2640.9,2640.8,2.37057129]
[1729609200461,4.756,2640.9,2640.8,2.37057129]
[1729609200661,0.37877,2641.3,2640.9,0.94707]
[1729609200965,0.3788,2641.1,2641.0,1.7447]
[1729609201155,5.13479,2641.2,2641.1,0.3788]
[1729609201350,4.756,2641.2,2641.1,0.3788]
[1729609201769,5.13478,2641.2,2641.1,0.3788]
[1729609202668,5.13478,2641.2,2640.8,2.37056129]
[1729609202669,0.37882,2640.9,2640.8,2.37056129]
[1729609202861,2.96,2640.9,2640.8,2.37057129]
[1729609203064,3.33882,2640.9,2640.8,2.37057129]
[1729609203568,3.33882,2640.9,2640.8,1.99173129]
[1729609203777,6.54662,2640.9,2640.8,1.99173129]
[1729609204064,7.98152,2640.9,2640.8,1.99173129]
[1729609205268,8.53023679,2640.9,2640.8,1.99173129]
[1729609205470,8.53023679,2640.9,2640.8,2.37057129]
[1729609205670,7.6027,2640.9,2640.8,2.37057129]
[1729609206373,4.6427,2640.9,2640.8,2.37057129]
[1729609206869,1.4349,2640.9,2640.8,2.37057129]
[1729609207365,0.37879,2641.2,2641.0,0.37881]
[1729609207562,1.796,2640.9,2640.8,2.37057129]
[1729609207871,3.2078,2641.3,2640.8,1.99173129]
[1729609208071,1.796,2641.2,2641.1,0.3788]
[1729609209575,3.58653,2641.6,2641.5,0.37874]
[1729609209759,5.37453,2641.6,2641.5,0.37874]
[1729609210166,0.37875,2641.5,2641.4,0.37875]
[1729609210361,7.9558,2641.6,2641.2,1.4209]
[1729609210664,6.18127,2641.4,2641.2,0.37877]
[1729609210863,4.3344,2641.4,2640.9,0.94707]
[1729609211071,4.71316,2641.4,2641.3,0.37877]
[1729609212173,0.37878,2641.3,2641.2,0.37878]
[1729609212470,0.37877,2641.3,2641.2,0.37877]
[1729609212867,4.3344,2641.4,2641.0,2.8522]
[1729609213168,2.96,2641.4,2641.0,2.8522]
[1729609213470,2.96,2641.4,2641.0,1.4209]
[1729609213671,0.3788,2641.1,2641.0,1.7997]
[1729609214058,3.33879,2641.2,2641.1,0.3788]
[1729609214267,3.33879,2641.2,2641.0,1.4209]
[1729609214268,0.3788,2641.1,2641.0,1.7997]
[1729609216573,1.69587,2641.3,2641.2,0.37878]
[1729609217876,3.48387,2641.3,2641.2,0.37878]
[1729609218581,1.788,2641.3,2641.2,0.37878]
[1729609218778,2.16677,2641.3,2641.2,0.37878]
[1729609219377,4.70975027,2641.6,2641.0,2.36792]
[1729609219378,0.37876,2641.4,2641.0,2.36792]
[1729609219675,2.16676,2641.4,2641.3,0.37877]
[1729609220287,0.37876,2641.4,2641.3,0.37877]
[1729609220579,1.788,2641.4,2641.3,0.37877]
[1729609221677,4.0302,2641.8,2641.3,3.7856]
[1729609221875,1.2959,2641.8,2641.7,0.37871]
[1729609222185,3.4011754,2641.9,2641.8,0.3787]
[1729609222186,4.9958,2641.9,2641.8,0.3787]
[1729609222373,1.788,2641.9,2641.8,0.3787]
[1729609223082,1.788,2641.9,2641.8,1.8455]
[1729609223593,2.16668,2641.9,2641.8,0.3787]
[1729609224386,0.3787,2641.8,2641.7,1.7487]
[1729609224872,2.16669,2641.9,2641.8,0.3787]
[1729609225278,1.788,2641.9,2641.8,4.1643]
[1729609225977,0.37868,2641.9,2641.8,4.1643]
[1729609226281,0.37868,2641.9,2641.8,0.3787]
[1729609226679,1.787,2642.1,2641.7,1.37]
[1729609226872,0.3787,2641.8,2641.7,1.7487]
[1729609227273,0.3787,2641.8,2641.7,1.37]
[1729609227871,0.3787,2641.8,2641.7,1.74871]
[1729609228273,1.787,2642.0,2641.7,5.1556]
[1729609228478,1.787,2642.0,2641.7,1.37]
[1729609228675,0.3787,2641.9,2641.8,0.37868]
[1729609228891,0.3787,2641.8,2641.7,1.7487]
[1729609229083,0.3787,2641.8,2641.7,1.37]
[1729609229478,0.3787,2641.8,2641.7,1.74871]
[1729609230194,4.571,2642.2,2641.7,9.06238]
[1729609230398,4.3206,2642.7,2642.3,0.37862]
[1729609230681,4.5869,2642.9,2642.8,0.37855]
[1729609230986,1.3791,2642.9,2642.8,0.37855]
[1729609231178,1.3791,2642.9,2642.5,1.4211]
[1729609231379,1.75764,2642.9,2642.6,0.37858]
[1729609231579,0.37856,2642.8,2642.6,0.37858]
[1729609231783,1.787,2643.1,2642.5,1.4211]
[1729609231984,0.37854,2642.9,2642.7,0.37855]
[1729609232184,4.4055,2643.2,2642.5,1.4211]
[1729609232486,0.37856,2642.8,2642.6,0.37857]
[1729609232684,0.37857,2642.7,2642.5,1.4211]
[1729609232994,0.37856,2642.8,2642.5,1.4211]
[1729609233281,2.73328,2643.1,2642.5,1.4211]
[1729609233282,1.787,2643.1,2642.5,1.4211]
[1729609233489,0.37854,2642.9,2642.7,0.37856]
[1729609233678,1.787,2643.1,2642.5,1.4211]
[1729609233882,0.37852,2643.0,2642.8,0.37854]
[1729609234082,0.37852,2643.0,2642.9,1.4894]
[1729609234591,0.37852,2643.1,2642.9,1.86794]
[1729609234786,0.3785,2643.2,2642.9,1.86794]
[1729609235182,0.37851,2643.1,2643.0,1.3572]
[1729609235388,0.3785,2643.2,2643.0,1.3572]
[1729609235686,3.39403984,2643.3,2643.0,1.3572]
[1729609235882,0.3785,2643.2,2643.0,1.3572]
[1729609236191,0.37851,2643.1,2643.0,1.3572]
[1729609236394,0.37852,2643.0,2642.9,1.4894]
[1729609236891,2.96,2643.2,2642.9,1.4894]
[1729609237193,3.39403984,2643.3,2642.9,1.4894]
[1729609237393,0.37852,2643.0,2642.9,1.4894]
[1729609238393,0.37852,2643.0,2642.5,1.4211]
[1729609238394,4.34026984,2643.3,2642.5,1.4211]
[1729609238590,0.37851,2643.1,2642.8,0.37855]
[1729609238891,1.787,2643.2,2642.7,3.2078]
[1729609239094,0.37852,2643.1,2642.8,0.37854]
[1729609239388,0.37852,2643.1,2642.9,0.37854]
[1729609239595,0.37852,2643.0,2642.8,0.37855]
[1729609239797,1.787,2643.2,2642.8,0.37855]
[1729609239990,0.37853,2643.0,2642.8,0.37855]
[1729609240183,0.37855,2642.9,2642.7,3.58636]
[1729609240388,0.37855,2642.8,2642.7,3.2078]
[1729609240894,0.37855,2642.8,2642.7,6.9918]
[1729609241288,0.37855,2642.8,2642.7,3.2078]
[1729609243495,0.37857,2642.7,2642.6,1.5576]
[1729609244597,0.37862,2642.3,2642.2,3.2078]
[1729609244794,2.96,2642.7,2642.2,3.2078]
[1729609245095,3.90643,2642.7,2642.2,3.2078]
[1729609245290,0.37862,2642.4,2642.3,0.37862]
[1729609245490,0.37861,2642.5,2642.4,0.3786]
[1729609245891,0.37861,2642.5,2642.4,4.1626]
[1729609246091,0.37861,2642.5,2642.4,3.784]
[1729609246289,0.37862,2642.3,2642.2,0.37863]
[1729609246697,0.37862,2642.3,2642.2,4.16343]
[1729609246994,0.37862,2642.4,2642.3,0.37861]
[1729609247689,7.13647,2642.9,2642.3,3.7848]
[1729609247890,0.37861,2642.5,2642.4,0.37859]
[1729609248286,0.37861,2642.5,2642.4,4.16259]
[1729609249002,1.779,2642.8,2642.4,3.784]
[1729609249190,2.15756,2642.8,2642.7,0.37857]
[1729609249395,0.37856,2642.8,2642.7,0.37857]
[1729609250495,1.90614,2642.9,2642.8,0.37855]
[1729609250696,0.37856,2642.8,2642.7,0.37856]
[1729609251197,1.5276,2642.9,2642.6,3.0668]
[1729609251198,1.5276,2642.9,2642.8,0.37855]
[1729609251403,0.37855,2642.8,2642.7,0.37856]
[1729609252093,1.5276,2642.9,2642.7,0.37856]
[1729609252401,0.37855,2642.8,2642.7,0.37856]
[1729609252700,1.5276,2642.9,2642.7,0.37856]
[1729609253197,0.37858,2642.6,2642.1,2.96]
[1729609253401,0.3786,2642.5,2642.4,0.37861]
[1729609253597,1.4375,2642.8,2642.6,0.37858]
[1729609253802,0.37857,2642.7,2642.6,0.37858]
[1729609253999,0.37858,2642.7,2642.3,1.5328]
[1729609254194,1.5276,2642.9,2642.3,1.5328]
[1729609254396,0.37856,2642.8,2642.6,0.37857]
[1729609254700,1.5276,2642.9,2642.6,0.37857]